bitfinex-derivatives/quotes_BTCF0:USTF0_20250720
["timestamp","ask_amount","ask_price","bid_price","bid_amount"]
[1752989884488,0.05547,117920.0,117910.0,2.16411654]
[1752989885490,0.05547,117920.0,117910.0,1.90823954]
[1752989885691,0.05547,117920.0,117910.0,2.16411654]
[1752989887792,0.05547,117920.0,117910.0,2.087807]
[1752989888090,0.05547,117920.0,117910.0,2.19466189]
[1752989895705,0.05547,117920.0,117910.0,1.47306189]
[1752989895903,0.05547,117920.0,117910.0,2.19466189]
[1752989896103,0.05547,117920.0,117910.0,1.93878489]
[1752989896303,0.05547,117920.0,117910.0,2.19466189]
[1752989897703,0.05547,117920.0,117910.0,2.087807]
[1752989898412,0.05547,117920.0,117910.0,2.16411892]
[1752989899208,0.05547,117920.0,117910.0,2.087807]
[1752989902410,0.05547,117920.0,117910.0,1.366207]
[1752989902709,0.05547,117920.0,117910.0,2.087807]
[1752989903813,0.05547,117920.0,117910.0,1.366207]
[1752989904112,0.05547,117920.0,117910.0,2.087807]
[1752989904714,0.05547,117920.0,117910.0,1.366207]
[1752989904910,0.05547,117920.0,117910.0,2.087807]
[1752989906715,0.05547,117920.0,117910.0,1.366207]
[1752989906915,0.05547,117920.0,117910.0,2.087807]
[1752989908014,0.05547,117920.0,117910.0,2.19466189]
[1752989908916,0.2249858,117920.0,117910.0,2.19466189]
[1752989909816,0.05547,117920.0,117910.0,2.19466189]
[1752989911218,0.2249857,117920.0,117910.0,2.19466189]
[1752989916522,0.05547,117920.0,117910.0,2.19466189]
[1752989917422,0.2249858,117920.0,117910.0,2.19466189]
[1752989918727,0.2249858,117920.0,117910.0,1.47306189]
[1752989918919,0.2249858,117920.0,117910.0,2.19466189]
[1752989920224,0.05547,117920.0,117910.0,2.19466189]
[1752989920426,0.2249857,117920.0,117910.0,2.19466189]
[1752989922820,0.05547,117920.0,117910.0,2.19466189]
[1752989923027,0.05547,117920.0,117910.0,2.32260039]
[1752989923323,0.05547,117920.0,117910.0,2.19466189]
[1752989928330,0.2249858,117920.0,117910.0,2.19466189]
[1752989929935,0.05547,117920.0,117910.0,2.19466189]
[1752989930126,0.2249858,117920.0,117910.0,2.19466189]
[1752989933135,0.2249858,117920.0,117910.0,1.93878489]
[1752989933436,0.2249858,117920.0,117910.0,2.19466189]
[1752989939337,0.2249858,117920.0,117910.0,1.93878489]
[1752989939537,0.2249858,117920.0,117910.0,2.19466189]
[1752989941838,0.05547,117920.0,117910.0,2.19466189]
[1752989947944,0.05547,117920.0,117910.0,2.087807]
[1752989949546,0.05077,117920.0,117910.0,2.087807]
[1752989950043,0.05529,117920.0,117910.0,2.087807]
[1752989952547,0.2248058,117920.0,117910.0,2.087807]
[1752989954251,0.05529,117920.0,117910.0,2.087807]
[1752989957749,0.05529,117920.0,117910.0,1.366207]
[1752989958051,0.05529,117920.0,117910.0,2.19466189]
[1752989958849,0.05077,117920.0,117910.0,2.19466189]
[1752989962956,0.05255,117930.0,117920.0,0.1695158]
[1752989963156,0.05255,117940.0,117930.0,0.1695014]
[1752989963351,0.05255,117940.0,117930.0,1.18723357]
[1752989963852,0.05255,117940.0,117930.0,1.1261784]
[1752989964054,0.05255,117940.0,117930.0,1.20250003]
[1752989964653,0.05255,117940.0,117930.0,1.1261784]
[1752989964854,0.05255,117940.0,117930.0,1.1291784]
[1752989965056,0.05355,117940.0,117930.0,1.1291784]
[1752989965255,0.05355,117940.0,117930.0,1.20550003]
[1752989965458,0.05355,117940.0,117930.0,1.27311685]
[1752989966255,0.05455,117940.0,117930.0,1.27411685]
[1752989967560,0.05455,117940.0,117930.0,1.19779522]
[1752989969361,0.05003,117940.0,117930.0,1.40205535]
[1752989969556,0.05003,117940.0,117930.0,1.19779522]
[1752989970462,0.04903,117940.0,117930.0,1.19679522]
[1752989970658,0.05003,117940.0,117930.0,1.19779522]
[1752989970962,0.05003,117940.0,117930.0,1.27198499]
[1752989972363,0.05003,117940.0,117930.0,1.39992349]
[1752989972560,0.05003,117940.0,117930.0,1.27198499]
[1752989974966,0.002,117940.0,117930.0,1.39992349]
[1752989975167,0.002,117940.0,117930.0,1.19579522]
[1752989977161,0.0499,117940.0,117930.0,1.19579522]
[1752989977368,0.0499,117940.0,117930.0,1.27190221]
[1752989977771,0.0499,117940.0,117930.0,1.39984071]
[1752989979672,0.002,117940.0,117930.0,1.39984071]
[1752989981970,0.0499,117940.0,117930.0,1.39984071]
[1752989987378,0.0499,117940.0,117930.0,1.32373372]
[1752989987771,0.0499,117940.0,117930.0,1.39984106]
[1752989988876,0.002,117940.0,117930.0,1.39984106]
[1752989989576,0.002,117940.0,117930.0,1.40084106]
[1752989990079,0.002,117940.0,117930.0,1.40384106]
[1752989991175,0.0499,117940.0,117930.0,1.40384106]
[1752989993479,0.0499,117940.0,117930.0,1.32773372]
[1752989995876,0.0499,117940.0,117930.0,1.43458861]
[1752990001779,0.05466,117940.0,117930.0,1.30665011]
[1752990001978,0.08915,117940.0,117930.0,1.30665011]
[1752990002185,0.3865755,117940.0,117930.0,0.95752821]
[1752990002383,0.8061595,117940.0,117930.0,0.97861182]
[1752990002682,0.8061595,117940.0,117930.0,0.8347385]
[1752990002882,0.934098,117940.0,117930.0,0.92776]
[1752990003075,0.8061595,117940.0,117930.0,0.40701992]
[1752990003278,1.294898,117940.0,117930.0,0.4172565]
[1752990003480,1.294898,117940.0,117930.0,0.4589385]
[1752990003682,1.294898,117940.0,117930.0,0.331]
[1752990004486,0.8061595,117940.0,117930.0,0.4589385]
[1752990004679,0.8061595,117940.0,117930.0,0.5199322]
[1752990005084,0.8061595,117940.0,117930.0,0.4589385]
[1752990005481,0.8061595,117940.0,117930.0,0.6284399]
[1752990006786,0.678221,117940.0,117930.0,0.6284399]
[1752990007078,0.8061595,117940.0,117930.0,0.6284399]
[1752990008688,0.8061595,117940.0,117930.0,0.4589385]
[1752990014082,0.8061595,117940.0,117930.0,0.331]
[1752990014282,0.5561595,117940.0,117930.0,0.331]
[1752990015388,0.5561595,117940.0,117930.0,0.33579]
[1752990017388,0.3865755,117940.0,117930.0,0.33579]
[1752990017591,0.5561595,117940.0,117930.0,0.33579]
[1752990020291,0.3865755,117940.0,117930.0,0.33579]
[1752990020491,0.5561595,117940.0,117930.0,0.33579]
[1752990021893,0.5561595,117940.0,117930.0,0.3381]
[1752990023794,0.428221,117940.0,117930.0,0.3381]
[1752990023999,0.5561595,117940.0,117930.0,0.3381]
[1752990026898,0.423461,117940.0,117930.0,0.5380513]
[1752990027087,0.5513995,117940.0,117930.0,0.5380513]
[1752990027396,1.1331995,117940.0,117930.0,0.5380513]
[1752990027696,0.9636155,117940.0,117930.0,0.5380513]
[1752990029696,0.9636155,117940.0,117930.0,0.5230413]
[1752990030798,0.9636155,117940.0,117930.0,0.35354]
[1752990030998,0.9636155,117940.0,117930.0,0.5230413]
[1752990031702,0.9636155,117940.0,117930.0,0.5076013]
[1752990033301,0.9636155,117940.0,117930.0,0.8684013]
[1752990033508,0.835677,117940.0,117930.0,1.0765698]
[1752990034114,0.9636155,117940.0,117930.0,1.0765698]
[1752990034310,0.9636155,117940.0,117930.0,1.1375635]
[1752990034510,0.9636155,117940.0,117930.0,1.009625]
[1752990034814,0.9636155,117940.0,117930.0,1.1375635]
[1752990035013,0.9636155,117940.0,117930.0,1.0887135]
[1752990037417,0.9636155,117940.0,117930.0,0.9192122]
[1752990037715,0.98210453,117940.0,117930.0,0.8582185]
[1752990038014,0.85416603,117940.0,117930.0,1.0277199]
[1752990038208,0.98210453,117940.0,117930.0,1.0277199]
[1752990038407,0.27236603,117940.0,117930.0,1.0765699]
[1752990039013,0.27006603,117940.0,117930.0,1.0765699]
[1752990039216,0.27006603,117940.0,117930.0,1.2045084]
[1752990039519,0.251577,117940.0,117930.0,0.9486314]
[1752990039708,0.251577,117940.0,117930.0,1.0765699]
[1752990041117,0.27006199,117940.0,117930.0,1.0765699]
[1752990041318,0.251577,117940.0,117930.0,1.0765699]
[1752990042114,0.251577,117940.0,117930.0,1.2045084]
[1752990042416,0.251577,117940.0,117930.0,1.0765699]
[1752990042618,0.251577,117940.0,117930.0,1.2045084]
[1752990045219,0.251577,117940.0,117930.0,1.0765699]
[1752990045722,0.251577,117940.0,117930.0,1.2045084]
[1752990046216,0.251577,117940.0,117930.0,1.2655021]
[1752990047122,0.251577,117940.0,117930.0,1.1375636]
[1752990047923,0.251577,117940.0,117930.0,1.2655021]
[1752990049822,0.251577,117940.0,117930.0,1.0096251]
[1752990050121,0.251577,117940.0,117930.0,1.2655021]
[1752990051219,0.251577,117940.0,117930.0,1.1375636]
[1752990053623,0.219387,117940.0,117930.0,1.1375636]
[1752990053923,0.219387,117940.0,117930.0,1.2655021]
[1752990056323,0.219387,117940.0,117930.0,1.2045084]
[1752990056822,0.219387,117940.0,117930.0,0.8437084]
[1752990057021,0.219387,117940.0,117930.0,1.5653084]
[1752990058825,0.219387,117940.0,117930.0,1.62630591]
[1752990059923,0.234997,117940.0,117930.0,1.62630591]
[1752990060125,0.250117,117940.0,117930.0,1.62630591]
[1752990060425,0.219387,117940.0,117930.0,1.62630591]
[1752990061529,0.219387,117940.0,117930.0,1.49836741]
[1752990061726,0.171487,117940.0,117930.0,1.62630591]
[1752990063729,0.002,117940.0,117930.0,1.62630591]
[1752990066431,0.002,117940.0,117930.0,1.5653084]
[1752990067733,0.002,117940.0,117930.0,1.62631862]
[1752990068628,0.002,117940.0,117930.0,1.5653084]
[1752990070830,0.002,117940.0,117930.0,1.62632041]
[1752990072129,0.002,117940.0,117930.0,1.62631351]
[1752990076439,0.002,117940.0,117930.0,1.5653084]
[1752990083745,0.002,117940.0,117930.0,1.3094314]
[1752990083945,0.002,117940.0,117930.0,1.5653084]
[1752990086742,0.2160227,117950.0,117940.0,0.2576571]
[1752990086947,0.2160227,117950.0,117940.0,1.8156941]
[1752990087247,0.2160227,117950.0,117940.0,1.82504511]
[1752990087948,0.2160227,117950.0,117940.0,1.82604511]
[1752990088247,0.2170227,117950.0,117940.0,1.82904511]
[1752990088447,0.2180227,117950.0,117940.0,1.82904511]
[1752990090148,0.2332827,117950.0,117940.0,1.82904511]
[1752990092450,0.2332827,117950.0,117940.0,2.18984511]
[1752990094950,0.2332827,117950.0,117940.0,2.2508205]
[1752990095142,0.2332827,117950.0,117940.0,2.18984511]
[1752990095849,0.06381,117950.0,117940.0,2.18984511]
[1752990097251,0.2332826,117950.0,117940.0,2.18984511]
[1752990097755,0.2332826,117950.0,117940.0,2.25084927]
[1752990098055,0.2498326,117950.0,117940.0,2.25084927]
[1752990098254,0.2498326,117950.0,117940.0,1.99497227]
[1752990098455,0.2498326,117950.0,117940.0,2.25084927]
[1752990101859,0.2498326,117950.0,117940.0,2.18984511]
[1752990103062,0.2498326,117950.0,117940.0,2.25087303]
[1752990106176,0.2498326,117950.0,117940.0,2.18984511]
[1752990106366,0.2498326,117950.0,117940.0,1.60848511]
[1752990107467,0.2498326,117950.0,117940.0,2.18968511]
[1752990113073,0.2498326,117950.0,117940.0,2.265932]
[1752990120086,0.2180226,117950.0,117940.0,2.265932]
[1752990120886,0.2180226,117950.0,117940.0,2.010055]
[1752990121087,0.2180226,117950.0,117940.0,2.265932]
[1752990122981,0.2180226,117950.0,117940.0,2.18968511]
[1752990123387,0.2180226,117950.0,117940.0,1.46808511]
[1752990123589,0.2498026,117950.0,117940.0,2.18968511]
[1752990124989,0.2180226,117950.0,117940.0,2.18968511]
[1752990126591,0.2180226,117950.0,117940.0,2.265932]
[1752990127794,0.2180226,117950.0,117940.0,2.25073642]
[1752990137793,0.2180226,117950.0,117940.0,1.46808511]
[1752990137994,0.2180226,117950.0,117940.0,2.18968511]
[1752990138698,0.2180226,117950.0,117940.0,2.265932]
[1752990140900,0.2180226,117950.0,117940.0,1.544332]
[1752990141100,0.2180226,117950.0,117940.0,2.265932]
[1752990144901,0.2180226,117950.0,117940.0,1.544332]
[1752990145101,0.2180226,117950.0,117940.0,2.265932]
[1752990145501,0.002,117950.0,117940.0,1.8126705]
[1752990145803,0.3009579,117960.0,117940.0,1.8126705]
[1752990145804,0.2585909,117960.0,117950.0,0.2576627]
[1752990146101,0.2585909,117960.0,117950.0,1.89642559]
[1752990146301,0.3797039,117970.0,117960.0,0.2048083]
[1752990146491,0.3797039,117970.0,117960.0,0.93537119]
[1752990146693,0.3797039,117970.0,117960.0,1.25537119]
[1752990146893,0.3797039,117970.0,117960.0,1.20537119]
[1752990148006,0.00552,117970.0,117960.0,1.2732638]
[1752990148399,0.00652,117970.0,117960.0,1.33430969]
[1752990149300,0.1759639,117970.0,117960.0,1.33430969]
[1752990149800,0.00452,117970.0,117960.0,1.33330969]
[1752990150103,0.2859918,118000.0,117990.0,0.2576052]
[1752990150304,0.30438532,118000.0,117990.0,2.1660822]
[1752990150506,0.3327518,118000.0,117990.0,1.8560822]
[1752990152906,0.3337518,118000.0,117990.0,1.8590822]
[1752990154107,0.3337518,118000.0,117990.0,2.0790822]
[1752990156103,0.3337518,118000.0,117990.0,1.8690822]
[1752990164316,0.3361218,118000.0,117990.0,1.8690822]
[1752990168109,0.3361218,118000.0,117990.0,0.78173]
[1752990168416,0.97625263,118000.0,117990.0,0.003]
[1752990168614,1.14574863,118000.0,117990.0,0.003]
[1752990169209,1.16407641,118000.0,117990.0,0.003]
[1752990170514,1.16407641,118000.0,117990.0,1e-07]
[1752990176419,0.90819941,118000.0,117990.0,1e-07]
[1752990176621,1.16407641,118000.0,117990.0,1e-07]
[1752990177221,0.90819941,118000.0,117990.0,1e-07]
[1752990177423,1.16407641,118000.0,117990.0,1e-07]
[1752990178018,0.90819941,118000.0,117990.0,1e-07]
[1752990178222,1.16407641,118000.0,117990.0,1e-07]
[1752990181127,0.90819941,118000.0,117990.0,1e-07]
[1752990181425,1.16407641,118000.0,117990.0,1e-07]
[1752990183530,0.99458041,118000.0,117990.0,1e-07]
[1752990184025,0.99458041,118000.0,117990.0,0.0022801]
[1752990184227,0.99458041,118000.0,117990.0,0.0395101]
[1752990184425,0.63378041,118000.0,117990.0,0.0395101]
[1752990185836,0.37790341,118000.0,117990.0,0.0395101]
[1752990186036,0.63378041,118000.0,117990.0,0.0395101]
[1752990186334,0.99458041,118000.0,117990.0,0.0395101]
[1752990187134,0.99458041,118000.0,117990.0,0.0861601]
[1752990187328,0.99458041,118000.0,117990.0,0.0395101]
[1752990187731,0.63378041,118000.0,117990.0,0.0395101]
[1752990188432,0.50584191,118000.0,117990.0,0.0395101]
[1752990191538,0.86664191,118000.0,117990.0,0.0395101]
[1752990191940,0.50584191,118000.0,117990.0,0.0395101]
[1752990194240,0.50759588,118000.0,117990.0,0.0395101]
[1752990194743,0.37965738,118000.0,117990.0,0.0395101]
[1752990194940,0.50759588,118000.0,117990.0,0.0395101]
[1752990196243,0.50759588,118000.0,117990.0,0.0235001]
[1752990196542,0.63553438,118000.0,117990.0,0.0235001]
[1752990197843,0.99633438,118000.0,117990.0,0.0235001]
[1752990198042,0.99633438,118000.0,117960.0,1.25611512]
[1752990198043,0.187645,117970.0,117960.0,0.08105689]
[1752990198348,0.2565193,117960.0,117950.0,0.44696]
[1752990198647,0.2517993,117960.0,117950.0,0.5748985]
[1752990198839,0.2495193,117960.0,117950.0,0.702837]
[1752990199042,0.2336493,117960.0,117950.0,0.702837]
[1752990199344,0.23540327,117960.0,117950.0,0.702837]
[1752990199544,0.25400472,117960.0,117950.0,0.702837]
[1752990199945,0.23840327,117960.0,117950.0,0.721837]
[1752990200446,0.23740327,117960.0,117950.0,0.8823107]
[1752990200646,0.23740327,117960.0,117950.0,0.64387546]
[1752990200843,0.2012924,117930.0,117920.0,0.06517457]
[1752990201044,0.6173624,117930.0,117920.0,0.44517457]
[1752990201247,0.6173624,117930.0,117920.0,0.43670436]
[1752990201547,0.61911637,117930.0,117920.0,0.43670436]
[1752990201745,0.25831637,117930.0,117920.0,0.43670436]
[1752990202047,0.25831637,117930.0,117920.0,0.79750436]
[1752990202254,0.25831637,117930.0,117920.0,0.96840206]
[1752990202451,0.26031637,117930.0,117920.0,0.97740206]
[1752990202651,0.26031637,117930.0,117920.0,0.80650436]
[1752990202850,0.26031637,117930.0,117920.0,0.81131436]
[1752990203651,0.26031637,117930.0,117920.0,0.82030436]
[1752990203953,0.26031637,117930.0,117920.0,0.99120206]
[1752990204145,0.26031637,117930.0,117920.0,0.99841116]
[1752990204750,0.26031637,117930.0,117920.0,1.16930886]
[1752990205854,0.26131637,117930.0,117920.0,1.16930886]
[1752990206550,0.17425637,117930.0,117920.0,1.16930886]
[1752990207648,0.22297637,117930.0,117920.0,1.16930886]
[1752990208548,0.17425637,117930.0,117920.0,1.16930886]
[1752990209154,0.22297637,117930.0,117920.0,1.16930886]
[1752990209952,0.26273637,117930.0,117920.0,0.45051436]
[1752990210153,0.62353637,117930.0,117920.0,0.99790436]
[1752990210357,0.26273637,117930.0,117920.0,0.99790436]
[1752990210857,0.43363407,117930.0,117920.0,0.99790436]
[1752990211355,0.43363407,117930.0,117920.0,1.00016436]
[1752990211550,0.43363407,117930.0,117920.0,1.01390436]
[1752990212156,0.26273637,117930.0,117920.0,1.01863436]
[1752990217865,0.26273637,117930.0,117920.0,1.18815116]
[1752990218257,0.26273637,117930.0,117920.0,1.35904886]
[1752990218866,0.26273637,117930.0,117920.0,1.36803886]
[1752990219165,0.26273637,117930.0,117920.0,1.19714116]
[1752990219567,0.26273637,117930.0,117920.0,1.20573116]
[1752990220064,0.26273637,117930.0,117920.0,0.45079979]
[1752990220364,0.43363407,117930.0,117920.0,0.43321979]
[1752990220870,0.26273637,117930.0,117920.0,0.43321979]
[1752990221168,0.26273637,117930.0,117920.0,0.45079979]
[1752990222264,0.22297637,117930.0,117920.0,1.15201429]
[1752990222464,0.1694893,117940.0,117930.0,0.1998824]
[1752990222669,0.1694893,117940.0,117930.0,1.0207901]
[1752990223065,0.2182093,117940.0,117930.0,1.0207901]
[1752990223464,0.2229193,117940.0,117930.0,1.0207901]
[1752990224167,0.2239193,117940.0,117930.0,1.0257901]
[1752990224467,0.05443,117940.0,117930.0,1.0257901]
[1752990224966,0.00471,117960.0,117940.0,0.02913]
[1752990225169,0.04872,117960.0,117950.0,1.3449914]
[1752990225371,0.06737735,117960.0,117950.0,1.3140937]
[1752990225565,0.06737735,117960.0,117950.0,1.4849914]
[1752990226171,0.06837735,117960.0,117950.0,1.4849914]
[1752990226472,0.04972,117960.0,117950.0,1.4849914]
[1752990226869,0.04972,117960.0,117950.0,1.4889914]
[1752990227664,0.05072,117960.0,117950.0,1.4899914]
[1752990230776,0.2201793,117960.0,117950.0,1.4899914]
[1752990232580,0.2248893,117960.0,117950.0,1.4899914]
[1752990233182,0.2248893,117960.0,117950.0,1.55940239]
[1752990233480,0.05543,117960.0,117950.0,1.55940239]
[1752990234383,0.05072,117960.0,117950.0,1.77940239]
[1752990235677,0.05072,117960.0,117950.0,1.60850469]
[1752990235882,0.05072,117960.0,117950.0,1.77940239]
[1752990239083,0.05553,117960.0,117950.0,1.79642599]
[1752990239693,0.05553,117960.0,117950.0,1.62552829]
[1752990239895,0.05553,117960.0,117950.0,1.79642599]
[1752990242397,0.05072,117960.0,117950.0,1.79642599]
[1752990245894,0.002,117960.0,117950.0,1.79642599]
[1752990248196,0.04805,117970.0,117960.0,0.1953793]
[1752990248402,0.04805,117970.0,117960.0,0.793287]
[1752990249501,0.05386,117970.0,117960.0,0.795287]
[1752990250403,0.223305,117970.0,117960.0,0.795287]
[1752990250606,0.224305,117970.0,117960.0,0.796287]
[1752990252306,0.224305,117970.0,117960.0,0.85706117]
[1752990262117,0.240695,117970.0,117960.0,0.85706117]
[1752990262317,0.259015,117970.0,117960.0,0.85706117]
[1752990262512,0.259015,117970.0,117960.0,0.84984117]
[1752990262816,0.259015,117970.0,117960.0,0.84085117]
[1752990263418,0.259015,117970.0,117960.0,0.85706117]
[1752990266822,0.259015,117970.0,117960.0,0.49626117]
[1752990267027,0.259015,117970.0,117960.0,0.85706117]
[1752990270525,0.259015,117970.0,117960.0,1.02706117]
[1752990271027,0.259015,117970.0,117960.0,1.11229483]
[1752990277837,0.259015,117970.0,117960.0,0.85616347]
[1752990278024,0.259015,117970.0,117960.0,1.05152066]
[1752990279535,0.259015,117970.0,117960.0,0.7953893]
[1752990279733,0.259015,117970.0,117960.0,1.05152066]
[1752990280634,0.259015,117970.0,117960.0,1.12776755]
[1752990289749,0.259015,117970.0,117960.0,0.87163619]
[1752990289949,0.259015,117970.0,117960.0,1.12776755]
[1752990295052,0.259015,117970.0,117960.0,1.05152066]
[1752990300956,0.224305,117970.0,117960.0,1.05152066]
[1752990301258,0.002,117970.0,117960.0,1.17958634]
[1752990301652,0.30287061,117990.0,117980.0,0.1694306]
[1752990301857,0.34535843,117990.0,117980.0,1.46653196]
[1752990302756,0.36122843,117990.0,117980.0,1.46653196]
[1752990303158,0.37893843,117990.0,117980.0,1.46653196]
[1752990303451,0.36047061,117990.0,117980.0,1.46653196]
[1752990303658,0.36047061,117990.0,117980.0,1.52756366]
[1752990303857,0.36347061,117990.0,117980.0,1.52856366]
[1752990304246,0.36347061,117990.0,117980.0,1.46753196]
[1752990307256,0.36347061,117990.0,117980.0,1.52856366]
[1752990307558,0.36747061,117990.0,117980.0,1.52956366]
[1752990307958,0.36747061,117990.0,117980.0,1.46853196]
[1752990308356,0.36747061,117990.0,117980.0,1.2124006]
[1752990308556,0.36747061,117990.0,117980.0,1.4772105]
[1752990309457,0.33389061,117990.0,117980.0,1.4772105]
[1752990311362,0.34976061,117990.0,117980.0,1.4772105]
[1752990311862,0.36498061,117990.0,117980.0,1.4772105]
[1752990312961,0.36498061,117990.0,117980.0,1.5382422]
[1752990314158,0.36498061,117990.0,117980.0,1.8990422]
[1752990314463,0.36747061,117990.0,117980.0,1.8990422]
[1752990315760,0.36747061,117990.0,117980.0,1.8380105]
[1752990317764,0.36747061,117990.0,117980.0,1.58187914]
[1752990317966,0.36747061,117990.0,117980.0,1.8990422]
[1752990319168,0.36747061,117990.0,117980.0,1.64291084]
[1752990319568,0.36747061,117990.0,117980.0,1.8990422]
[1752990326476,0.36747061,117990.0,117980.0,1.5382422]
[1752990329379,0.36747061,117990.0,117980.0,1.28211084]
[1752990329581,0.36747061,117990.0,117980.0,1.5382422]
[1752990333282,0.3485185,117990.0,117980.0,1.5382422]
[1752990336980,0.3485185,117990.0,117980.0,1.1774422]
[1752990337185,0.3485185,117990.0,117980.0,1.5382422]
[1752990338387,0.3485185,117990.0,117980.0,1.4772105]
[1752990345390,0.3485185,117990.0,117980.0,1.1164105]
[1752990345590,0.3485185,117990.0,117980.0,1.4772105]
[1752990346690,0.3485185,117990.0,117980.0,1.5382443]
[1752990348893,0.3485185,117990.0,117980.0,1.1774443]
[1752990349096,0.3485185,117990.0,117980.0,1.5382443]
[1752990352394,0.3485185,117990.0,117980.0,1.28211294]
[1752990352695,0.3485185,117990.0,117980.0,1.5382443]
[1752990353896,0.3485185,117990.0,117980.0,1.8082443]
[1752990354993,0.3485185,117990.0,117980.0,1.7472105]
[1752990356397,0.3485185,117990.0,117980.0,1.49107914]
[1752990356590,0.3485185,117990.0,117980.0,1.7472105]
[1752990358099,0.3485185,117990.0,117980.0,1.5521128]
[1752990358294,0.3485185,117990.0,117980.0,1.80824416]
[1752990358798,0.3485185,117990.0,117980.0,1.5521128]
[1752990359001,0.3485185,117990.0,117980.0,1.80824416]
[1752990359601,0.3485185,117990.0,117980.0,1.5521128]
[1752990359798,0.3485185,117990.0,117980.0,1.80824416]
[1752990360601,0.3485185,117990.0,117980.0,1.5521128]
[1752990360904,0.3485185,117990.0,117980.0,1.80824416]
[1752990364298,0.3485185,117990.0,117980.0,1.5521128]
[1752990364501,0.3485185,117990.0,117980.0,1.80824416]
[1752990369399,0.3485185,117990.0,117980.0,1.44744416]
[1752990369603,0.3485185,117990.0,117980.0,1.80824416]
[1752990373207,0.3485185,117990.0,117980.0,1.7472105]
[1752990373504,0.3485185,117990.0,117980.0,1.7400105]
[1752990373703,0.3485185,117990.0,117980.0,1.80104493]
[1752990374203,0.3485185,117990.0,117980.0,1.54491357]
[1752990374604,0.3485185,117990.0,117980.0,1.80104493]
[1752990375303,0.3485185,117990.0,117980.0,1.54491357]
[1752990375504,0.3485185,117990.0,117980.0,1.7400105]
[1752990375706,0.3485185,117990.0,117980.0,1.48387914]
[1752990375906,0.3485185,117990.0,117980.0,1.7400105]
[1752990377508,0.3485185,117990.0,117980.0,1.48387914]
[1752990377806,0.3485185,117990.0,117980.0,1.7400105]
[1752990378002,0.47658418,117990.0,117980.0,0.54249549]
[1752990378309,0.47658418,117990.0,117980.0,1.12849549]
[1752990379510,0.47658418,117990.0,117980.0,1.00042981]
[1752990379711,0.3485185,117990.0,117980.0,1.12849549]
[1752990380010,0.47658418,117990.0,117980.0,1.12849549]
[1752990381712,0.3485185,117990.0,117980.0,1.12849549]
[1752990381908,0.47658418,117990.0,117980.0,1.12849549]
[1752990382412,0.47658418,117990.0,117980.0,1.00042981]
[1752990382612,0.47658418,117990.0,117980.0,1.12849549]
[1752990385116,0.47658418,117990.0,117980.0,1.00042981]
[1752990385315,0.47658418,117990.0,117980.0,1.12849549]
[1752990392517,0.3485185,117990.0,117980.0,1.12849549]
[1752990392717,0.47658418,117990.0,117980.0,1.12849549]
[1752990395819,0.47658418,117990.0,117980.0,1.25656117]
[1752990396720,0.47658418,117990.0,117980.0,1.00042981]
[1752990396919,0.47658418,117990.0,117980.0,1.61736117]
[1752990397116,0.47658418,117990.0,117980.0,1.48929549]
[1752990397317,0.47658418,117990.0,117980.0,1.12849549]
[1752990399621,0.47658418,117990.0,117980.0,1.48929549]
[1752990399919,0.47658418,117990.0,117980.0,1.12849549]
[1752990401020,0.47658418,117990.0,117980.0,1.36122981]
[1752990401220,0.47658418,117990.0,117980.0,1.48929549]
[1752990403019,0.3485185,117990.0,117980.0,1.48929549]
[1752990403220,0.47658418,117990.0,117980.0,1.48929549]
[1752990405022,0.47658418,117990.0,117980.0,1.49828549]
[1752990405925,0.47658418,117990.0,117980.0,1.13748549]
[1752990406223,0.47658418,117990.0,117980.0,1.37021981]
[1752990406425,0.47658418,117990.0,117980.0,1.49828549]
[1752990409028,0.47658418,117990.0,117980.0,1.13748549]
[1752990409325,0.47658418,117990.0,117980.0,1.49828549]
[1752990410727,0.47658418,117990.0,117980.0,1.13748549]
[1752990411024,0.47658418,117990.0,117980.0,1.49828549]
[1752990412524,0.47657196,117990.0,117980.0,1.49828549]
[1752990412825,0.34850628,117990.0,117980.0,1.49828549]
[1752990413226,0.47657196,117990.0,117980.0,1.49828549]
[1752990413827,0.47657196,117990.0,117980.0,1.50350943]
[1752990416432,0.34850628,117990.0,117980.0,1.50350943]
[1752990416624,0.47657196,117990.0,117980.0,1.50350943]
[1752990416932,0.34850628,117990.0,117980.0,1.37544375]
[1752990417132,0.47657196,117990.0,117980.0,1.50350943]
[1752990418935,0.47657196,117990.0,117980.0,1.37544375]
[1752990419133,0.47657196,117990.0,117980.0,1.50350943]
[1752990420934,0.47657196,117990.0,117980.0,1.14270943]
[1752990421135,0.47657196,117990.0,117980.0,1.50350943]
[1752990423741,0.47657196,117990.0,117980.0,1.14270943]
[1752990423939,0.47657196,117990.0,117980.0,1.50350943]
[1752990426141,0.34850628,117990.0,117980.0,1.50350943]
[1752990426339,0.47657196,117990.0,117980.0,1.50350943]
[1752990429244,0.34850628,117990.0,117980.0,1.50350943]
[1752990429441,0.47657196,117990.0,117980.0,1.50350943]
[1752990430844,0.47657196,117990.0,117980.0,1.14270943]
[1752990433648,0.47657196,117990.0,117980.0,1.50350943]
[1752990433847,0.47657196,117990.0,117980.0,1.14270943]
[1752990435047,0.47657196,117990.0,117980.0,1.50350943]
[1752990438949,0.47657196,117990.0,117980.0,1.14270943]
[1752990439356,0.47657196,117990.0,117980.0,1.01464375]
[1752990439544,0.47657196,117990.0,117980.0,1.14270943]
[1752990440853,0.34850628,117990.0,117980.0,1.14270943]
[1752990441156,0.47657196,117990.0,117980.0,1.14270943]
[1752990441450,0.47657196,117990.0,117980.0,1.50350943]
[1752990443856,0.34850628,117990.0,117980.0,0.91750943]
[1752990444062,0.47657196,117990.0,117980.0,1.67270003]
[1752990444651,0.47657196,117990.0,117980.0,0.78944375]
[1752990444953,0.47657196,117990.0,117980.0,1.50326943]
[1752990445856,0.47657196,117990.0,117980.0,0.91750943]
[1752990446053,0.47657196,117990.0,117980.0,1.50326943]
[1752990448756,0.34850628,117990.0,117980.0,1.50326943]
[1752990448947,0.47657196,117990.0,117980.0,1.50326943]
[1752990449255,0.47657196,117990.0,117980.0,1.67270003]
[1752990449761,0.47657196,117990.0,117980.0,1.50326943]
[1752990449963,0.47657196,117990.0,117980.0,1.14246943]
[1752990450155,0.47657196,117990.0,117980.0,1.50326943]
[1752990451757,0.47657196,117990.0,117980.0,1.14246943]
[1752990451957,0.47657196,117990.0,117980.0,1.50326943]
[1752990458763,0.47657196,117990.0,117980.0,1.14246943]
[1752990458960,0.47657196,117990.0,117980.0,1.50326943]
[1752990471470,0.47657196,117990.0,117980.0,1.37520375]
[1752990471670,0.47657196,117990.0,117980.0,1.50326943]
[1752990475971,0.47657196,117990.0,117980.0,1.14246943]
[1752990476171,0.47657196,117990.0,117980.0,1.50326943]
[1752990481772,0.34850628,117990.0,117980.0,1.50326943]